Cogmind - Beta 10.2 @@@ ROGUE MODE // 2021.02.06 @ 13:17:46 Player: 277 Result: Destroyed by Y-72 Warden with Quantum Rifle Performance ------------- Evolutions (8) 4000 Regions Visited (13) 2600 Robots Destroyed (262) 1310 Value Destroyed (10470) 10470 Prototype IDs (17) 340 Alien Tech Used (0) 0 Bonus (1784) 1784 TOTAL SCORE: 20504 Bonus ------- High Alert Combat Kills 1875 Follower Combat Kills 349 Friendly Fire -440 Cogmind --------- Core Integrity 0/1450 Matter 300/300 Energy 99/100 System Corruption 41% Temperature Cool (9) Movement Core (50) Location -2/Research Parts ------- > --- POWER (2) -------- (None) > --- PROPULSION (5) --- (None) > --- UTILITY (12) ----- Advanced Coolant Injector Experimental Signal Interpreter > --- WEAPON (4) ------- (None) > --- INVENTORY (4) ---- (None) Peak State ------------ > --- POWER ------------ Fusion Reactor Quantum Reactor > --- PROPULSION ------- Improved Heavy Treads Advanced Heavy Treads > --- UTILITY ---------- Advanced Thermal Generator Advanced Cooling System High-capacity Storage Unit Enhanced Optical Array Experimental Signal Interpreter Advanced Terrain Scanner Advanced Terrain Scan Processor Advanced Targeting Computer Layered Heavy Armor Plating Improved System Shield > --- WEAPON ----------- Proton Burst Cannon Heavy Gauss Cannon Heavy Gauss Cannon Heavy Shock Bomb Launcher > --- INVENTORY -------- Antimatter Reactor Light Antimatter Reactor High-capacity Matter Pod Improved Heavy Armor Plating Advanced Shield Generator Enhanced Quantum Rifle Proton Burst Cannon Matter Neutralizer Heavy Neutron Cannon Heavy Neutron Cannon Heavy Rocket Launcher [Rating: 132] Favorites ----------- Power Antimatter Reactor Engine Light Ion Engine Power Core Micro Fission Core Reactor Antimatter Reactor Propulsion Aluminum Leg Treads Light Treads Leg Aluminum Leg Wheel Armored Huge Wheel Utility Advanced Targeting Computer Device Advanced Cooling System Storage High-capacity Storage Unit Processor Advanced Targeting Computer Hackware Improved System Shield Protection Layered Heavy Armor Plating Weapon Gauss Rifle Energy Gun Heavy EM Shotgun Energy Cannon Matter Neutralizer Ballistic Gun Gauss Rifle Ballistic Cannon Heavy Gauss Cannon Launcher Rocket Launcher Special Weapon Mining Laser Slashing Weapon Mining Claw Build | -11 -10 -10 -10 -9 -8 -7 -6 -5 -4 -4 -4 -3 -2 ------- Run | Scr Mat Min Exi Min Mat Fac Fac Fac Fac Was Fac Res Res Slots Evolved 16 | . . . . . 4 2 2 2 2 . . 2 2 Power 1 | . . . . . . . . 1 . . . . . Propulsion 3 | . . . . . . . 1 . 1 . . . 1 Utility 10 | . . . . . 3 2 1 1 1 . . 1 1 Weapon 2 | . . . . . 1 . . . . . . 1 . Parts Attached 247 | 6 21 10 . 13 26 40 18 32 18 3 17 21 22 Power 23 | 1 . 1 . . 2 5 2 2 1 2 2 2 3 Engine 11 | 1 . 1 . . 2 5 1 1 . . . . . Core 1 | . . . . . . . . . 1 . . . . Reactor 11 | . . . . . . . 1 1 . 2 2 2 3 Propulsion 46 | 2 6 1 . 3 5 10 3 . 3 . 3 1 9 Treads 28 | . . . . . 5 9 1 . 2 . 3 1 7 Leg 14 | 2 6 1 . 3 . 1 1 . . . . . . Wheel 4 | . . . . . . . 1 . 1 . . . 2 Hover . | . . . . . . . . . . . . . . Flight . | . . . . . . . . . . . . . . Utility 60 | 1 3 2 . 1 8 11 4 9 4 . 5 6 6 Device 34 | 1 . 2 . 1 3 7 2 6 2 . 2 4 4 Storage 4 | . 2 . . . . 1 . . . . 1 . . Processor 6 | . . . . . 2 . . 2 . . 1 . 1 Hackware 4 | . 1 . . . 1 1 1 . . . . . . Protection 12 | . . . . . 2 2 1 1 2 . 1 2 1 Artifact . | . . . . . . . . . . . . . . Weapon 118 | 2 12 6 . 9 11 14 9 21 10 1 7 12 4 Energy Gun 9 | . . 1 . . 3 1 . . . . 1 1 2 Energy Cannon 29 | . . . . . . 3 3 8 5 . 3 6 1 Ballistic Gun 27 | 2 5 2 . 3 5 7 2 . 1 . . . . Ballistic Cannon 15 | . . . . 1 1 . 2 6 3 . 2 . . Launcher 28 | . 1 2 . 2 2 3 2 7 1 1 1 5 1 Special Weapon 4 | . 4 . . . . . . . . . . . . Impact Weapon . | . . . . . . . . . . . . . . Slashing Weapon 6 | . 2 1 . 3 . . . . . . . . . Piercing Weapon . | . . . . . . . . . . . . . . Special Melee Weapon . | . . . . . . . . . . . . . . Unidentified Prototypes 11 | . . . . . 2 2 1 1 1 . 2 1 1 Parts Lost 64 | . . 2 . 2 6 4 3 . 4 . 1 19 23 Power 8 | . . 1 . . . . . . 1 . 1 2 3 Propulsion 14 | . . . . 1 1 1 1 . . . . 2 8 Utility 25 | . . 1 . 1 2 2 1 . 3 . . 7 8 Weapon 17 | . . . . . 3 1 1 . . . . 8 4 Highest Loss Streak 17 | . . 1 . 1 3 1 2 . 2 . 1 12 17 Average Slot Usage (%) 91 | . 97 99 100 97 95 98 86 92 88 84 85 81 50 Engine 6 | . 14 13 14 14 8 6 5 3 . . . . . Reactor 3 | . . . . . . . . 6 8 7 10 8 3 Treads 7 | . . . . . 16 13 6 5 5 10 9 8 13 Leg 8 | . 28 28 28 27 1 . . . . . . . . Wheel 1 | . . . . . . . 4 5 9 5 1 . . Device 12 | . 9 9 14 12 13 12 6 15 16 5 9 13 10 Storage 7 | . 11 14 14 14 9 7 6 5 5 5 5 3 . Processor 10 | . . . . . 7 15 13 15 15 15 20 19 17 Hackware 5 | . 4 4 . . 1 14 13 6 5 5 5 3 . Protection 3 | . . . . . 10 2 6 4 5 10 5 3 . Energy Gun 1 | . . . . . 9 3 . . . . . 1 . Energy Cannon 3 | . . . . . . 2 5 5 8 10 9 3 1 Ballistic Gun 5 | . 16 5 . . 12 14 3 . . . . . . Ballistic Cannon 3 | . . . . 8 . . 6 6 5 . 3 8 . Launcher 4 | . 6 12 14 12 3 1 2 3 . 4 1 1 . Slashing Weapon 2 | . 1 9 14 6 . . . . . . . . . Naked Turns . | . . . . . . . . . . . . . . Heaviest Build 142 | 10 27 27 26 26 50 65 82 107 125 132 132 142 61 Greatest Support 150 | 20 20 20 20 23 40 48 48 28 100 100 150 150 135 Greatest Overweight (x) 3 | . 1 1 1 1 3 2 3 3 3 1 1 . . Average Overweight (x) 1 | . . 1 1 1 . . 2 2 2 1 . . . Largest Inventory Capacity 12 | 4 10 10 10 10 10 12 12 12 12 12 12 12 4 Average Capacity 10 | 4 7 10 10 10 10 11 12 12 12 12 12 11 4 Most Carried 12 | 4 10 10 10 10 10 12 12 12 12 12 12 12 4 Average Carried 10 | 2 6 9 9 9 9 10 11 11 11 11 11 10 1 Final Capacity 12 | 4 10 10 10 10 10 12 12 12 12 12 12 4 4 Final Carried 12 | 4 10 10 10 10 10 12 12 12 12 12 12 4 . Class Distribution -------------------- 38% | Mutant 18% | Skirmisher 15% | Scavenger-Mutant 8% | Hacker-Mutant 4% | Hacker-Skirmisher 3% | Hacker-Gunner Dominant Class ---------------- Mutant | -10/Materials Scavenger-Mutant | -10/Mines Scavenger-Mutant | -10/Exiles Mutant | -9/Mines Mutant | -8/Materials Hacker-Skirmisher | -7/Factory Hacker-Gunner | -6/Factory Mutant | -5/Factory Mutant | -4/Factory Mutant | -4/Waste Skirmisher | -4/Factory Skirmisher | -3/Research Mutant | -2/Research Resources | -11 -10 -10 -10 -9 -8 -7 -6 -5 -4 -4 -4 -3 -2 ----------- Run | Scr Mat Min Exi Min Mat Fac Fac Fac Fac Was Fac Res Res Matter Collected 7340 | 284 499 604 10 288 768 1107 471 847 550 362 546 819 185 Remotely . | . . . . . . . . . . . . . . Salvage Created 10871 | 148 362 364 . 263 1309 2540 857 1330 496 525 377 1470 830 Parts 484 | 13 22 20 . 15 78 120 25 64 25 2 8 58 34 Haulers Intercepted 3 | . . . . . . . 1 1 1 . . . . Recyclers Shooed 16 | . . . . 1 . 4 3 3 1 . . 4 . Parts Field Recycled . | . . . . . . . . . . . . . . Retrieved Matter . | . . . . . . . . . . . . . . Parts Self-Destructed . | . . . . . . . . . . . . . . Prevented . | . . . . . . . . . . . . . . Kills | -11 -10 -10 -10 -9 -8 -7 -6 -5 -4 -4 -4 -3 -2 ------- Run | Scr Mat Min Exi Min Mat Fac Fac Fac Fac Was Fac Res Res Combat Hostiles Destroyed 160 | . 5 11 . 7 22 31 8 18 11 3 8 27 9 Melee 5 | . . . . 1 . . . . . . . . 4 Guns 47 | . 5 2 . 1 15 21 3 . . . . . . Cannons 51 | . . . . 2 . 3 5 8 11 . 6 16 . AOE 52 | . . 9 . 3 7 7 . 9 . 3 2 11 1 Classes Destroyed 21 | 2 3 4 . . 3 4 1 2 . 1 1 . . Worker 30 | . 2 4 . 1 1 6 . 6 4 . . 4 2 Builder 14 | . . 1 . 1 1 1 1 1 2 . . 6 . Tunneler 11 | 4 . 2 . 2 . 1 1 1 . . . . . Hauler 3 | . . . . . . . 1 1 1 . . . . Recycler 26 | 1 1 2 . 2 3 7 2 2 . . 1 5 . Mechanic 1 | . . . . . . 1 . . . . . . . Operator 8 | . 2 . . . 2 1 . 2 1 . . . . Drone 1 | . . . . . . . . 1 . . . . . Watcher 15 | . . . . . 4 2 1 4 1 . 1 2 . Swarmer 14 | . . 6 . . . 3 . . . . . 5 . Grunt 58 | . 5 1 . 4 9 13 6 6 1 . 1 8 4 Brawler 2 | . . . . . . 1 . . . . . . 1 Duelist 6 | . . . . . . 2 . 1 . . . 2 1 Protector 1 | . . . . . . . . 1 . . . . . Sentry 31 | . . . . . 11 6 1 1 5 . 4 3 . Demolisher 1 | . . 1 . . . . . . . . . . . Hunter 12 | . . . . . 2 3 . 4 . . . 3 . Programmer 25 | . . . . . . 3 1 4 5 . 2 7 3 Behemoth 1 | . . . . . . . . . . . 1 . . Compactor 3 | . . . . . . . . . . 3 . . . Assembled 6 | . . 3 . 3 . . . . . . . . . Best Kill Streak 20 | 5 5 4 . 4 6 9 4 5 4 3 3 20 4 Combat Bots Only 13 | . 2 3 . 2 5 5 4 5 2 3 3 13 4 Max Kills in Single Turn 6 | 2 1 2 . 2 2 6 1 3 2 1 1 3 1 Gunslinging . | . . . . . . . . . . . . . . Exploded 3 | . . 2 . 1 2 3 . 3 . 1 1 2 1 Melee 1 | . . . . 1 . . . . . . . . 1 Uniques/NPCs Destroyed . | . . . . . . . . . . . . . . Combat | -11 -10 -10 -10 -9 -8 -7 -6 -5 -4 -4 -4 -3 -2 -------- Run | Scr Mat Min Exi Min Mat Fac Fac Fac Fac Was Fac Res Res Damage Taken 17714 | . 249 358 . 233 837 1706 795 1229 767 124 1291 4757 5368 Core 3318 | . 54 83 . . 109 289 73 105 116 . 20 991 1478 Absorbed by Shields 1380 | . . . . . . 264 . 373 266 . . 477 . Core Remaining (%) 71 | 100 . . . 45 80 58 91 89 . . 88 23 . Volleys Fired 614 | 4 41 45 . 26 68 89 44 79 59 22 27 86 24 Largest 4 | 2 2 2 . 2 3 3 3 3 3 3 3 4 1 Hottest 320 | 40 120 65 . 65 141 141 196 229 267 254 320 316 100 Shots Fired 1114 | 8 63 51 . 34 137 222 87 140 115 34 59 140 24 Gun 407 | 8 43 18 . 7 111 186 19 . . . 7 8 . Cannon 517 | . . . . 16 . 20 57 117 108 17 50 110 22 Launcher 175 | . 5 33 . 11 26 16 11 23 7 17 2 22 2 Special 15 | . 15 . . . . . . . . . . . . Kinetic 559 | 8 43 17 . 23 67 152 46 68 39 . 26 70 . Thermal 229 | . 15 1 . . 4 26 19 8 65 17 31 43 . Explosive 122 | . 5 33 . 11 26 . . 7 . 17 2 21 . Electromagnetic 204 | . . . . . 40 44 22 57 11 . . 6 24 Robot Hit Streak 30 | 3 13 10 . 8 17 21 15 23 12 11 14 15 30 Robot Miss Streak 6 | 1 2 3 . 2 6 5 6 5 3 1 1 2 2 Penetration Max 1 | . . . . . . 1 . . 1 . . 1 . Secondary Targets 3 | . . . . . 1 2 . . . . . . . Max Gunslinging Chain 1 | . . . . . 1 1 . . . . . . . Shots Hit Robots 757 | 5 33 19 . 21 87 177 57 86 71 29 44 104 24 Core Hits 601 | 6 18 34 . 19 70 128 39 61 33 8 22 120 43 Critical Hits 25 | . 1 . . . 2 1 . 3 5 . 3 10 . Critical Kills 10 | . . . . . 1 1 . 1 2 . 2 3 . Critical Parts Destroyed 12 | . 1 . . . 1 . . 2 2 . . 6 . Melee Attacks 40 | . 5 16 . 19 . . . . . . . . . Impact . | . . . . . . . . . . . . . . Slashing 40 | . 5 16 . 19 . . . . . . . . . Piercing . | . . . . . . . . . . . . . . Sneak Attacks 6 | . . 3 . 3 . . . . . . . . . Combat Hostiles 1 | . . . . 1 . . . . . . . . . Follow-up Attacks . | . . . . . . . . . . . . . . Damage Inflicted 32904 | 75 575 1163 . 921 2965 4581 1840 4436 3624 2355 1769 7485 1115 Guns 5675 | 75 417 177 . 45 1426 2841 359 . . . 122 213 . Cannons 12868 | . . . . 251 . 469 1321 2352 2618 549 1380 3263 665 Explosions 13598 | . 158 754 . 395 1539 1271 160 2084 1006 1806 267 3973 185 Melee 462 | . . 232 . 230 . . . . . . . . . Ramming 301 | . . . . . . . . . . . . 36 265 Kinetic 9628 | 75 417 162 . 296 626 2435 774 1146 966 . 820 1911 . Thermal 6692 | . . 15 . . 149 971 543 574 1536 549 818 1484 53 Explosive 10185 | . 158 754 . 395 1425 48 . 1042 687 1806 131 3739 . Electromagnetic 5636 | . . . . . 765 1127 523 1674 435 . . 315 797 Impact . | . . . . . . . . . . . . . . Slashing 462 | . . 232 . 230 . . . . . . . . . Piercing . | . . . . . . . . . . . . . . Highest Corruption 41 | . . . . 1 . 2 2 9 7 7 14 8 41 Average Corruption 4 | . . . . 1 . 1 2 4 4 7 10 3 9 Corruption Purged . | . . . . . . . . . . . . . . Effects 142 | . . . . . . 9 2 30 10 8 57 11 15 Message Errors 18 | . . . . . . 1 1 4 1 1 7 1 2 Matter Fused 31 | . . . . . . . . 5 4 . 21 . 1 Heat Flow Errors 13 | . . . . . . . . 7 2 . 2 1 1 Energy Discharges 19 | . . . . . . 3 . 5 . 2 4 2 3 Data Loss (minor) 18 | . . . . . . 1 1 3 2 4 5 . 2 Data Loss (major) 5 | . . . . . . . . . . . 4 . 1 Misfires 3 | . . . . . . . . . . 1 1 1 . Misdirections 13 | . . . . . . . . . . . 8 . 5 Targeting Errors 19 | . . . . . . 4 . 5 1 . 5 4 . Weapon Failures 3 | . . . . . . . . 1 . . . 2 . Overload Shots 1 | . . . . . . 1 . . . . . . . Overflow Damage 1039 | . 9 89 . 91 111 18 35 127 110 8 21 420 . Projectiles 350 | . . . . . . . 30 36 65 . 8 211 . Explosions 514 | . 9 5 . . 111 18 5 91 45 8 13 209 . Melee 175 | . . 84 . 91 . . . . . . . . . Knockbacks 31 | . . . . 5 . . 4 7 . . 2 13 . Impact . | . . . . . . . . . . . . . . Kinetic 30 | . . . . 4 . . 4 7 . . 2 13 . Secondary 1 | . . . . 1 . . . . . . . . . Self-Inflicted Damage 803 | . 34 128 . . 84 27 . . 47 26 . 283 174 Shots 28 | . 2 4 . . 6 3 . . 2 1 . 7 3 Rammed 80 | . . . . . . . . . . . . 14 66 Targets Rammed 84 | . . . . . . . . . . . . 14 70 Kicked . | . . . . . . . . . . . . . . Crushed 4 | . . . . . . . . . . . . . 4 Highest Temperature 455 | . 60 24 . 3 184 72 233 288 321 324 455 410 191 Average Temperature 80 | . 16 8 . 2 40 22 74 78 99 153 114 120 65 Received Heat Transfer 2596 | . 111 18 . 30 288 458 336 85 69 18 54 634 495 Effects 12 | . . . . . . . . . 1 2 2 7 . Shutdowns 3 | . . . . . . . . . . . 1 2 . Energy Bleed 2 | . . . . . . . . . 1 . . 1 . Interference 6 | . . . . . . . . . . 2 1 3 . Damage (minor) 1 | . . . . . . . . . . . . 1 . Siege Activations . | . . . . . . . . . . . . . . Robots Corrupted 7 | . . . . . . . 1 2 . . . . 4 Combat Hostiles 5 | . . . . . . . . 1 . . . . 4 Parts Fried 37 | . . . . . 5 1 10 9 1 . . . 11 Impact Corruptions . | . . . . . . . . . . . . . . Robots Melted . | . . . . . . . . . . . . . . Combat Hostiles . | . . . . . . . . . . . . . . Parts Melted 3 | . . . . . 1 1 1 . . . . . . Heat Transferred 6493 | . . 37 . . 174 1259 707 575 1469 446 767 1009 50 Parts Sabotaged . | . . . . . . . . . . . . . . Parts Stolen . | . . . . . . . . . . . . . . Parts Stripped . | . . . . . . . . . . . . . . Power Chain Reactions 10 | . . . . . 2 4 2 1 . . . . 1 Missiles Intercepted . | . . . . . . . . . . . . . . Alert | -11 -10 -10 -10 -9 -8 -7 -6 -5 -4 -4 -4 -3 -2 ------- Run | Scr Mat Min Exi Min Mat Fac Fac Fac Fac Was Fac Res Res Peak Influence 1130 | 25 168 327 . 130 651 739 493 1130 1050 479 503 1010 946 Initial 567 | . 16 36 . . . 296 361 241 553 367 321 264 567 Average 366 | 9 65 150 . 18 423 362 395 541 850 451 368 311 733 Maximum Alert Level 4 | . . 1 . . 2 3 2 4 3 2 2 3 3 Low Security (%) 32 | 100 100 72 . 100 10 21 . 12 . . . 33 . Level 1 28 | . . 27 . . 25 38 57 39 . 12 60 41 . Level 2 24 | . . . . . 64 33 42 16 29 87 39 11 46 Level 3 13 | . . . . . . 7 . 25 70 . . 13 53 Level 4 . | . . . . . . . . 6 . . . . . Level 5 . | . . . . . . . . . . . . . . High Security . | . . . . . . . . . . . . . . Max Security . | . . . . . . . . . . . . . . Squads Dispatched 45 | . 1 . . . 5 11 1 11 2 . 2 10 2 Investigation 5 | . 1 . . . 1 3 . . . . . . . Extermination 14 | . . . . . . 3 1 2 2 . 2 3 1 Reinforcement 11 | . . . . . 1 . . 4 . . . 6 . Assault 7 | . . . . . . 2 . 3 . . . 1 1 Garrison 8 | . . . . . 3 3 . 2 . . . . . Intercept . | . . . . . . . . . . . . . . Construction Impeded 4 | . . . . . . . . 1 . . . 3 . Haulers Reinforced 2 | . . . . . . . . 2 . . . . . Stealth | -11 -10 -10 -10 -9 -8 -7 -6 -5 -4 -4 -4 -3 -2 --------- Run | Scr Mat Min Exi Min Mat Fac Fac Fac Fac Was Fac Res Res Distress Signals 10 | . . . . . 2 1 . 2 2 . 1 1 1 Communications Jammed . | . . . . . . . . . . . . . . Distress Signals . | . . . . . . . . . . . . . . Times Spotted 277 | . 11 12 . 8 34 44 15 27 19 6 14 57 30 Peak Tracking Total 15 | . 3 3 . 3 5 5 6 5 2 2 6 15 7 Tactical Retreats 23 | . . 1 . 2 5 2 2 2 . . . 4 5 Traps | -11 -10 -10 -10 -9 -8 -7 -6 -5 -4 -4 -4 -3 -2 ------- Run | Scr Mat Min Exi Min Mat Fac Fac Fac Fac Was Fac Res Res Traps Triggered 18 | . 1 . . . 2 4 4 2 3 . 1 . 1 Indirectly 3 | . . . . . . . 1 1 1 . . . . Trap Hack Attempts . | . . . . . . . . . . . . . . Triggered . | . . . . . . . . . . . . . . Disarmed . | . . . . . . . . . . . . . . Reprogrammed . | . . . . . . . . . . . . . . Reused . | . . . . . . . . . . . . . . Traps Extracted . | . . . . . . . . . . . . . . Installed . | . . . . . . . . . . . . . . Triggered . | . . . . . . . . . . . . . . Machines | -11 -10 -10 -10 -9 -8 -7 -6 -5 -4 -4 -4 -3 -2 ---------- Run | Scr Mat Min Exi Min Mat Fac Fac Fac Fac Was Fac Res Res Machines Disabled 88 | . 2 14 . 2 7 5 9 25 18 . 4 2 . Max in Single Turn 5 | . 1 2 . 1 2 2 2 5 4 . 3 1 . Garrison Access 1 | . . . . . . 1 . . . . . . . Machines Sabotaged 1 | . 1 . . . . . . . . . . . . Garrisons Compromised . | . . . . . . . . . . . . . . Overloaded Fab Kills . | . . . . . . . . . . . . . . Fab Network Shutdowns . | . . . . . . . . . . . . . . Hacking | -11 -10 -10 -10 -9 -8 -7 -6 -5 -4 -4 -4 -3 -2 --------- Run | Scr Mat Min Exi Min Mat Fac Fac Fac Fac Was Fac Res Res Machines Accessed 56 | . 7 1 4 1 6 12 3 7 6 . 7 2 . Terminals 30 | . 6 1 . . 2 8 1 3 4 . 4 1 . Fabricators 6 | . . . . . . 2 . 1 . . 2 1 . Repair Stations 3 | . . . . . 1 1 . 1 . . . . . Recycling Units 7 | . 1 . . . 1 . 2 1 1 . 1 . . Scanalyzers 5 | . . . . . 2 1 . 1 1 . . . . Garrison Access . | . . . . . . . . . . . . . . Total Hacks 266 | . 27 8 49 1 29 55 8 47 19 . 20 3 . Successful 193 | . 19 3 49 1 24 41 5 32 11 . 8 . . Failed 72 | . 7 5 . . 5 14 3 15 8 . 12 3 . Catastrophic 7 | . 1 . . . 2 1 . . . . 3 . . Database Lockouts 1 | . 1 . . . . . . . . . . . . Manual 69 | . 19 11 . . 3 17 3 6 6 . 2 2 . Terminals 104 | . 25 8 . . 5 24 6 8 13 . 13 2 . Fabricators 19 | . . . . . . 9 . 4 . . 5 1 . Repair Stations 9 | . . . . . 2 6 . 1 . . . . . Recycling Units 13 | . 2 . . . 1 . 2 4 2 . 2 . . Scanalyzers 71 | . . . . . 21 16 . 30 4 . . . . Garrison Access . | . . . . . . . . . . . . . . Terminal Hacks 86 | . 12 3 49 1 2 8 2 2 4 . 3 . . Record 54 | . . . 49 . . . . 2 1 . 2 . . Robot Analysis 7 | . 4 3 . . . . . . . . . . . Prototype ID Bank 2 | . 1 . . . 1 . . . . . . . . Open Door 1 | . . . . 1 . . . . . . . . . Branch Access Points 1 | . . . . . . 1 . . . . . . . Terminal Index 3 | . 1 . . . . 1 . . 1 . . . . Unreport Threat 3 | . . . . . . 2 1 . . . . . . Locate Traps 5 | . 2 . . . . 1 . . 1 . 1 . . Recall Reinforcements 1 | . . . . . . 1 . . . . . . . Zone Layout 9 | . 4 . . . 1 2 1 . 1 . . . . Fabricator Hacks 11 | . . . . . . 5 . 2 . . 4 . . Load Schematic 5 | . . . . . . 2 . 1 . . 2 . . Build 6 | . . . . . . 3 . 1 . . 2 . . Repair Station Hacks 7 | . . . . . 2 5 . . . . . . . Scan Component 4 | . . . . . 1 3 . . . . . . . Repair 3 | . . . . . 1 2 . . . . . . . Recycling Unit Hacks 3 | . 1 . . . . . . 1 1 . . . . Report Inventory 3 | . 1 . . . . . . 1 1 . . . . Scanalyzer 64 | . . . . . 19 16 . 26 3 . . . . Insert Component 27 | . . . . . 9 7 . 10 1 . . . . Analyze 37 | . . . . . 10 9 . 16 2 . . . . Garrison Access Hacks . | . . . . . . . . . . . . . . Unauthorized Hacks 22 | . 6 . . . 1 7 3 1 3 . 1 . . Terminals 15 | . 5 . . . 1 6 1 . 2 . . . . Track 5 | . 2 . . . 1 2 . . . . . . . Botnet 7 | . 2 . . . . 2 1 . 2 . . . . Operators 2 | . . . . . . 2 . . . . . . . Sabotage 1 | . 1 . . . . . . . . . . . . Fabricators 1 | . . . . . . 1 . . . . . . . Download 1 | . . . . . . 1 . . . . . . . Repair Stations . | . . . . . . . . . . . . . . Recycling Units 6 | . 1 . . . . . 2 1 1 . 1 . . Mask 6 | . 1 . . . . . 2 1 1 . 1 . . Scanalyzers . | . . . . . . . . . . . . . . Garrison Access . | . . . . . . . . . . . . . . Data Cores Recovered 2 | . 1 . . . . 1 . . . . . . . Used 1 | . . . . . . 1 . . . . . . . Hacking Detections 42 | . 6 1 . . 5 10 1 6 5 . 6 2 . Full Trace Events 1 | . . . . . . 1 . . . . . . . Feedback Events . | . . . . . . . . . . . . . . Feedback Blocked . | . . . . . . . . . . . . . . Robot Schematics Acquired 1 | . . . . . . 1 . . . . . . . Robots Built 3 | . . . . . . . . . . . 3 . . Matter 252 | . . . . . . . . . . . 252 . . Time 134 | . . . . . . . . . . . 134 . . Total Robot Build Rating 12 | . . . . . . . . . . . 12 . . Part Schematics Acquired 26 | . . . . . 8 7 . 10 1 . . . . Parts Built 8 | . . . . . . 5 . 2 . . 1 . . Matter 906 | . . . . . . 526 . 212 . . 168 . . Time 453 | . . . . . . 263 . 106 . . 84 . . Total Part Build Rating 31 | . . . . . . 15 . 12 . . 4 . . Parts Repaired 3 | . . . . . 1 2 . . . . . . . Time 83 | . . . . . 26 57 . . . . . . . Parts Recycled . | . . . . . . . . . . . . . . Recycled Matter . | . . . . . . . . . . . . . . Retrieved Matter . | . . . . . . . . . . . . . . Retrieved Components . | . . . . . . . . . . . . . . Parts Scanalyzed 26 | . . . . . 8 7 . 10 1 . . . . Part Schematics Acquired 26 | . . . . . 8 7 . 10 1 . . . . Parts Damaged 1 | . . . . . . 1 . . . . . . . Bothacking | -11 -10 -10 -10 -9 -8 -7 -6 -5 -4 -4 -4 -3 -2 ------------ Run | Scr Mat Min Exi Min Mat Fac Fac Fac Fac Was Fac Res Res Used RIF Installer . | . . . . . . . . . . . . . . Robots Hacked . | . . . . . . . . . . . . . . Non-combat . | . . . . . . . . . . . . . . Combat . | . . . . . . . . . . . . . . Robot Hacks Applied . | . . . . . . . . . . . . . . Relay Couplers Released 3 | . . . . . . 3 . . . . . . . Machine Destruction 3 | . . . . . . 3 . . . . . . . Robots Rewired 1 | . . . . . . . 1 . . . . . . Allies Hacked 2 | . . . . . . . . . . . . 2 . Hacks Repelled . | . . . . . . . . . . . . . . Allies | -11 -10 -10 -10 -9 -8 -7 -6 -5 -4 -4 -4 -3 -2 -------- Run | Scr Mat Min Exi Min Mat Fac Fac Fac Fac Was Fac Res Res Total Allies 8 | . . 1 . . . . 1 . 3 . 3 . . Largest Group 3 | . . 1 . . . . 1 1 3 3 3 2 . Highest-Rated Group 138 | . . 31 . . . . 32 32 138 138 92 60 . Highest-Rated Ally 46 | . . 31 . . . . 32 32 46 46 46 30 . Total Orders 5 | . . . . . 1 . . 2 . . . 2 . STAY 2 | . . . . . . . . 1 . . . 1 . FOLLOW 2 | . . . . . . . . 1 . . . 1 . EXPLORE 1 | . . . . . 1 . . . . . . . . Ally Attacks 110 | . . 7 . . 12 . . 12 16 52 11 . . Total Damage 2643 | . . 81 . . 62 . . 393 342 1468 297 . . Kills 12 | . . 3 . . . . . 1 3 3 2 . . Allies Corrupted 2 | . . . . . 1 . . . . . 1 . . Allies Melted . | . . . . . . . . . . . . . . Intel | -11 -10 -10 -10 -9 -8 -7 -6 -5 -4 -4 -4 -3 -2 ------- Run | Scr Mat Min Exi Min Mat Fac Fac Fac Fac Was Fac Res Res Robot Analysis Total 7 | . 4 3 . . . . . . . . . . . Derelict Logs Recovered 1 | . . 1 . . . . . . . . . . . Drone Launches 3 | . . . . . 3 . . . . . . . . Drone Recoveries . | . . . . . . . . . . . . . . Exploration | -11 -10 -10 -10 -9 -8 -7 -6 -5 -4 -4 -4 -3 -2 ------------- Run | Scr Mat Min Exi Min Mat Fac Fac Fac Fac Was Fac Res Res Turns Passed 13746 | 92 762 1263 711 1269 1038 2268 693 1802 947 209 1012 1190 490 Spaces Moved 7260 | 58 354 724 474 746 426 1011 344 1033 554 80 527 588 341 Core 334 | 3 . . . . . . . . . . . 78 253 Treads 2684 | . . . . . 395 1011 64 . 14 80 527 510 83 Legs 2384 | 55 354 724 474 746 31 . . . . . . . . Wheels 1858 | . . . . . . . 280 1033 540 . . . 5 Hover . | . . . . . . . . . . . . . . Flight . | . . . . . . . . . . . . . . Fastest Speed 50 | 50 120 150 150 150 150 160 120 120 115 187 160 50 50 Average Speed 145 | 116 133 150 150 150 171 174 135 129 119 187 167 138 79 Slowest Speed 220 | 120 150 150 150 150 210 200 220 130 187 187 187 160 170 Overloaded Moves . | . . . . . . . . . . . . . . Propulsion Burnouts . | . . . . . . . . . . . . . . Robots Hopped . | . . . . . . . . . . . . . . Cave-ins Triggered 1 | . . . . . . . . . 1 . . . . Exploration Rate (%) 44 | 3 64 99 88 98 51 28 11 28 20 74 25 25 12 Regions Visited 13 Branch Regions 3 Pre-discovered Areas 2 | . . 1 1 . . . . . . . . . . Known Exits Taken 3 | . . . . . . . . 1 . . 1 1 . Unknown Exits Taken 8 | 1 1 1 1 1 1 1 1 . . . . . . Scrap Searched 2 | . . 1 . 1 . . . . . . . . . Spaces Dug 98 | . 23 66 . . . . . 1 6 . 2 . . Terrain Destroyed 1289 | . 57 305 . 69 106 19 6 286 53 119 54 200 15 Melee 15 | . 4 11 . . . . . . . . . . . Projectile 97 | . 15 . . . 1 2 5 22 25 2 9 16 . AOE 1177 | . 38 294 . 69 105 17 1 264 28 117 45 184 15 Terrain Rammed . | . . . . . . . . . . . . . . Walls Destroyed . | . . . . . . . . . . . . . . Machines Disabled . | . . . . . . . . . . . . . . Actions | -11 -10 -10 -10 -9 -8 -7 -6 -5 -4 -4 -4 -3 -2 --------- Run | Scr Mat Min Exi Min Mat Fac Fac Fac Fac Was Fac Res Res Total 9278 | 71 536 818 475 821 614 1331 493 1352 739 110 605 833 480 Wait 828 | . 97 13 . 10 71 157 53 187 94 . 15 111 20 Move 7247 | 57 353 723 473 745 425 1010 343 1032 553 79 526 587 341 Hop . | . . . . . . . . . . . . . . Pick Up 79 | 4 10 5 1 3 11 15 6 6 5 2 6 4 1 Fast Attach 73 | 6 1 1 . 2 9 12 4 3 6 2 6 4 17 Attach 41 | . 1 2 . . 7 3 2 5 2 . 4 10 5 Detach 6 | . . . . . 1 . 1 . 1 . 1 2 . Swap 133 | . 19 7 . 11 10 25 12 24 10 1 7 7 . Drop 104 | . 9 6 1 5 12 20 9 8 8 4 13 8 1 Fire 614 | 4 41 45 . 26 68 89 44 79 59 22 27 86 24 Melee 40 | . 5 16 . 19 . . . . . . . . . Ram 26 | . . . . . . . . . . . . 14 12 Kick . | . . . . . . . . . . . . . . Crush 59 | . . . . . . . . . . . . . 59 Escape Stasis 25 | . . . . . . . 16 8 1 . . . . Rewire 3 | . . . . . . . 3 . . . . . . Trap . | . . . . . . . . . . . . . . Miscellaneous . | . . . . . . . . . . . . . . Route ------- -11/Scrapyard -10/Materials (discovered 3 exits: [*Mat x2] / *Min) -10/Mines (discovered 3 exits: [*Mat x2] / *Exi) -10/Exiles (discovered 2 exits: *Min x2) -9/Mines (discovered 2 exits: *Mat x2) -8/Materials -7/Factory (discovered 3 exits: *Fac / Low x2) -6/Factory -5/Factory (discovered 3 exits: *Fac / *Upp x2) -4/Factory (discovered 2 exits: *Res / *Upp) -4/Waste -4/Factory (discovered 3 exits: *Res / *Upp x2) -3/Research -2/Research History --------- Turn | Location | Event 6 | -11/Scrapyard | Discovered new exit (range 16) 93 | -11/Scrapyard | Entered Materials 222 | -10/Materials | Discovered new exit (range 10) 333 | -10/Materials | Build established: Mutant 493 | -10/Materials | Discovered new exit (range 8) 622 | -10/Materials | Discovered new exit (range 7) 675 | -10/Materials | Central database locked down 855 | -10/Materials | Entered Mines 862 | -10/Mines | Received a Rocket Launcher from a helpful Derelict 864 | -10/Mines | Learned location of Storage (-8) 1015 | -10/Mines | Escorted by a lone wolf Derelict 1066 | -10/Mines | Assembled infested the area 1146 | -10/Mines | Core integrity fell below 50% 1318 | -10/Mines | Found a hidden stash of uninstalled traps 1377 | -10/Mines | Discovered new exit (range 9) 1524 | -10/Mines | Build established: Scavenger-Mutant 1533 | -10/Mines | Deemed a non-threat by the Exiles lab entrance 1533 | -10/Mines | Discovered new exit (range 5) 1976 | -10/Mines | Discovered new exit (range 9) 2118 | -10/Mines | Entered Exiles 2142 | -10/Exiles | Discovered new exit (range 14) 2183 | -10/Exiles | Met 8R-AWN 2208 | -10/Exiles | Met EX-HEX 2255 | -10/Exiles | Met EX-BIN 2279 | -10/Exiles | Met EX-DEC 2334 | -10/Exiles | Visited The Gauntlet 2511 | -10/Exiles | Learned location of Zion (-6) 2810 | -10/Exiles | Discovered new exit (range 11) 2829 | -10/Exiles | Entered Mines 2877 | -9/Mines | Met a Derelict bent on vengeance 2946 | -9/Mines | Found a damaged Exp. Sensor Array with a note attached 2950 | -9/Mines | Found Prototype Device 3128 | -9/Mines | Discovered new exit (range 11) 3278 | -9/Mines | Excavation squad dispatched 3278 | -9/Mines | A large section of the Mines collapsed 3335 | -9/Mines | Build established: Mutant 3662 | -9/Mines | Found the Drone Emporium 3673 | -9/Mines | Found Prototype Device 3696 | -9/Mines | Discovered new exit (range 7) 4098 | -9/Mines | Entered Materials 4098 | -8/Materials | Evolved 4 slots: Utility x3, Weapon x1 4102 | -8/Materials | Identified Thief Drone Bay 4149 | -8/Materials | Garrison activated, responded to threat 4193 | -8/Materials | Lost 3 parts (1n2w) 4350 | -8/Materials | Repaired Grenade Launcher 4967 | -8/Materials | Discovered new exit (range 14) 5106 | -8/Materials | Identified Exp. Sensor Array 5136 | -8/Materials | Entered Factory 5136 | -7/Factory | Evolved 2 slots: Utility x2 5563 | -7/Factory | Repaired Deuterium Engine? 5621 | -7/Factory | Repaired Broken Hvy. EM Shotgun? 5802 | -7/Factory | Fabricated Lrn. Proton Cannon (x1) 5914 | -7/Factory | Fabricated Lrn. Proton Cannon (x1) 5969 | -7/Factory | Fabricated Mining Claw? 6211 | -7/Factory | Garrison activated, responded to threat 6688 | -7/Factory | Build established: Scavenger-Mutant 6992 | -7/Factory | Identified exit to Lower Caves 7038 | -7/Factory | Discovered new exit (range 19) 7136 | -7/Factory | First assault squad dispatched 7404 | -7/Factory | Entered another Factory area 7404 | -6/Factory | Evolved 2 slots: Propulsion x1, Utility x1 7929 | -6/Factory | Discovered new exit (range 15) 8097 | -6/Factory | Entered another Factory area 8097 | -5/Factory | Accompanied by 1 ally 8097 | -5/Factory | Evolved 2 slots: Power x1, Utility x1 8272 | -5/Factory | Found Prototype Processor 8408 | -5/Factory | Fabricated Adv. Shield Generator (x2) 8411 | -5/Factory | Identified Exp. Signal Interpreter 8526 | -5/Factory | Found Imp. Powered Armor 8760 | -5/Factory | Discovered new exit (range 7) 8767 | -5/Factory | Identified exit to Upper Caves 8984 | -5/Factory | Build established: Skirmisher 9297 | -5/Factory | First assault squad dispatched 9370 | -5/Factory | Discovered new exit (range 9) 9392 | -5/Factory | Identified exit to Factory 9600 | -5/Factory | Discovered exit to Upper Caves (range 18) 9686 | -5/Factory | Build established: Mutant 9767 | -5/Factory | Garrison activated, responded to threat 9899 | -5/Factory | Entered another Factory area 9899 | -4/Factory | Evolved 2 slots: Propulsion x1, Utility x1 10495 | -4/Factory | Spotted B-86 Titan 10574 | -4/Factory | Crushed by falling debris 10709 | -4/Factory | Allied Derelicts emerged from ambush trap array 10748 | -4/Factory | Discovered new exit (range 9) 10759 | -4/Factory | Identified exit to Upper Caves 10773 | -4/Factory | Discovered new exit (range 19) 10794 | -4/Factory | Identified exit to Research 10846 | -4/Factory | Sucked down chute 10846 | -4/Factory | Entered Waste 10856 | -4/Waste | Spotted C-40 Crusher 10879 | -4/Waste | Spotted C-40 Crusher 10881 | -4/Waste | Spotted C-40 Crusher 10883 | -4/Waste | Destroyed C-40 Crusher 10885 | -4/Waste | 3 allies followed down the chute 10888 | -4/Waste | Spotted C-40 Crusher 10890 | -4/Waste | Allies destroyed C-40 Crusher 10892 | -4/Waste | Spotted C-40 Crusher 10903 | -4/Waste | Destroyed C-40 Crusher 10911 | -4/Waste | Allies destroyed C-40 Crusher 10917 | -4/Waste | Destroyed C-40 Crusher 10975 | -4/Waste | Discovered new exit (range 22) 10987 | -4/Waste | Spotted C-40 Crusher 10999 | -4/Waste | Allies destroyed C-40 Crusher 11036 | -4/Waste | Identified exit to Factory 11055 | -4/Waste | Entered Factory 11055 | -4/Factory | Accompanied by 2 allies 11374 | -4/Factory | Discovered exit to Upper Caves (range 6) 11446 | -4/Factory | Fabricated Hvy. Rocket Launcher (x1) 11478 | -4/Factory | Build established: Skirmisher 11560 | -4/Factory | Spotted B-86 Titan 11578 | -4/Factory | Destroyed B-86 Titan 11583 | -4/Factory | System corruption reached 10% 11806 | -4/Factory | Discovered exit to Upper Caves (range 18) 11897 | -4/Factory | Fabricated L-41 Fighter? 11967 | -4/Factory | Discovered exit to Research (range 22) 12067 | -4/Factory | Entered Research 12067 | -3/Research | Accompanied by 2 allies 12067 | -3/Research | Evolved 2 slots: Utility x1, Weapon x1 13115 | -3/Research | First assault squad dispatched 13170 | -3/Research | Lost 5 parts (1p2u2w) 13174 | -3/Research | Destroyed 13 combat bots 13239 | -3/Research | Discovered new exit (range 19) 13245 | -3/Research | Core integrity fell below 50% 13257 | -3/Research | Identified exit to Research 13257 | -3/Research | Entered another Research area 13257 | -2/Research | Evolved 2 slots: Propulsion x1, Utility x1 13270 | -2/Research | Lost 12 parts (1p2n5u4w) 13369 | -2/Research | Build established: Mutant 13510 | -2/Research | Core integrity fell below 50% 13553 | -2/Research | First assault squad dispatched 13574 | -2/Research | System corruption reached 10% 13602 | -2/Research | Lost 3 parts (1u2w) 13699 | -2/Research | System corruption reached 30% 13711 | -2/Research | Core integrity fell below 20% 13744 | -2/Research | Lost 17 parts (3p7n5u2w) 13747 | -2/Research | Destroyed by Y-72 Warden with Quantum Rifle Last Messages --------------- 13705_ Acquired Med. Treads. 13706_ Arm. Medium Treads destroyed. 13709_ Rnf. Antimatter Reactor destroyed. 13711_ Slammed into B-74 Champion. 13711_ Adv. Terrain Scan Processor destroyed. 13711_ System corrupted by crushing effect (+5). 13713_ Slammed into G-73 Enforcer. 13713_ P-80 Master resets G-73 Enforcer, system corruption cleaned. 13713_ Med. Treads destroyed. 13714_ Slammed into M-36 Artificer. 13715_ Slammed into G-73 Enforcer. 13716_ System corrupted: Matter fused (-6). 13716_ Acquired 6 matter. 13716_ Slammed into G-73 Enforcer. 13718_ P-80 Master resets G-73 Enforcer, system corruption cleaned. 13726_ K-01 Serf collects debris. 13730_ Slammed into K-01 Serf. 13730_ K-01 Serf destroyed. 13731_ System corrupted: Substantial component data lost. 13744_ Adv. Targeting Computer destroyed. Map ----- +----------------------------------------------------+ | ?##?#????#??#??##?## #?##????## % | | ??#?##?##?#####???## = #?#??###?# | | ?#???#??#?#??###???# ###########+##### | | ????#?#?????###???# + / "%" | | ? ?##???#??#?##??################### # " | | ? ? ???? ???#???# #?####?#?# # | | ? # ? ??????##??# #??##??#?# # | | ? ??? ? ? ?##???# #??###?#?# ########## | | ? #????"???#?##?# ########## | | ?? #??""""????#??# + *=%! | | ???#? ?""?? ?#?#?# #######+########### | | ???????"?" ????### #? ?? ? ?????????? | | ???#? ??? ??#??# # ? ????????????? | | ????? ?? ? ##??## #??""" ""?????????????? | | ??????????????########/####? ??" ""?????????????? | | ?????????? ### #???"" """????????????? | | ????????????#?# # ? ????????????? | | ??????????????# +?? ????????????? | | ??????????????# # ?"" "??????????????? | | ??????????????# ###### #???"" "??????????????? | | ??????????????# #????# #???"" "??????????????? | | ??????????????# #????# #???? ???????????????? | | ???????????? #????# #???? ???????????????? | | ????????? #????# #????###???????????????? | | ???????# #??### ###????????????????????? | | ???????# #??# @ #????????????????????? | | ???????##/##########??# ???????????????? | | ????????????????????? Y ""????????????? | | ????????????????????### ??????????? | | ??????????????????????# ##### ?????????? | | ??????????????????????#######????? ??????????? | | ???????????????????????????????????? ??????????? | | ????????????????????????????????????? ???????????? | | ?????????????????????????????????????????????????? | | ?????????????????????????????????????????????????? | | ?????????????????????????????????????????????????? | | ?????????????????????????????????????????????????? | | ?????????????????????????????????????????????????? | | ?????????????????????????????????????????????????? | | ?????????????????????????????????????????????????? | | ?????????????????????????????????????????????????? | | ?????????????????????????????????????????????????? | | ?????????????????????????????????????????????????? | | ?????????????????????????????????????????????????? | | ?????????????????????????????????????????????????? | | ?????????????????????????????????????????????????? | | ?????????????????????????????????????????????????? | | ?????????????????????????????????????????????????? | | ?????????????????????????????????????????????????? | | ?????????????????????????????????????????????????? | +----------------------------------------------------+ Best States ------------- Heat Dissipation 77 Coolant Potential 100 Energy Generation 43 Energy Capacity 565 Matter Stores 300 Matter Capacity 300 Sight Range 22 Robot Scan Range 30 Terrain Scan Range 24 Terrain Scan Density 210 Cloak Strength 3 Armor Coverage 1200 Power Shielding 66 Phase Shifting 10 Evasion (%) 50 Targeting Accuracy 8 Armor Integrity Analysis 66 Recoil Reduction 5 Offensive Hacking 10 Defensive Hacking 12 Item Schematics ----------------- Imp. Ion Engine | -8/Materials | Scanalyzed Hcp. Matter Pod | -8/Materials | Scanalyzed Hardlight Generator | -8/Materials | Scanalyzed Hvy. Assault Rifle | -8/Materials | Scanalyzed Mining Claw | -8/Materials | Scanalyzed Imp. Terrain Scanner | -8/Materials | Scanalyzed Lgt. Treads | -8/Materials | Scanalyzed Exp. Sensor Array | -8/Materials | Scanalyzed Hvy. Ion Cannon | -7/Factory | Scanalyzed Deuterium Engine | -7/Factory | Scanalyzed Hvy. EM Shotgun | -7/Factory | Scanalyzed Gauss Rifle | -7/Factory | Scanalyzed Lrn. Proton Cannon | -7/Factory | Scanalyzed Proton Missile Launcher | -7/Factory | Scanalyzed Adv. Terrain Scan Processor | -7/Factory | Scanalyzed Adv. Terrain Scanner | -5/Factory | Scanalyzed Adv. Assault Cannon | -5/Factory | Scanalyzed Gauss Cannon | -5/Factory | Scanalyzed Adv. Heat Sink | -5/Factory | Scanalyzed Imp. Heavy Armor Plating | -5/Factory | Scanalyzed Ion Burst Cannon | -5/Factory | Scanalyzed Hvy. Rocket Launcher | -5/Factory | Scanalyzed Mass Driver | -5/Factory | Scanalyzed Hvy. Shock Bomb Launcher | -5/Factory | Scanalyzed Adv. Cooling System | -5/Factory | Scanalyzed Neutron Cannon | -4/Factory | Scanalyzed Robot Schematics ------------------ L-41 Fighter | -7/Factory | Downloaded Fabricated ------------ Lrn. Proton Cannon | x1 | -7/Factory | Preloaded Lrn. Proton Cannon | x1 | -7/Factory | Preloaded Mining Claw | x3 | -7/Factory Adv. Shield Generator | x2 | -5/Factory | Preloaded Hvy. Rocket Launcher | x1 | -4/Factory L-41 Fighter | x3 | -4/Factory Alien Tech Used ----------------- None Achievements -------------- Origins Challenges ------------ None Game ------ Seed InsulatedPointyMace Manual? 0 Play Time 03:47:10 Cumulative 240.6 hours Start 2021.02.05 @ 20:06:41 End 2021.02.06 @ 13:17:46 Sessions 5 Manual Loads 0 Difficulty Rogue Special Mode None Game No. 167 Rogue 167 Adventurer 0 Explorer 0 Win Type - Total 1 Types 1/0/0/0/0/0/0/0/0 Lore% 65 Gallery% 71 Achievement% 52 Wizard Run 0 Options --------- ASCII 0 Keyboard 0 Movement Mouse Keybinds 0 Fullscreen 1 Font 18/SmallcapsGlow Map View 76x50 Tactical HUD 1 Map Filters NONE Filters NONE Steam 1 RUN: 552b9658-a8e3-4f62-ba71-148cece7e1b3